[Event "*** Titled Tuesday Blitz"]
[Site "Chess.com"]
[Date "2020.05.12"]
[Round "2"]
[White "swimmerchess"]
[Black "shrek4life02"]
[Result "1-0"]
[WhiteElo "2828"]
[BlackElo "2532"]
[TimeControl "180+1"]
[EndTime "10:18:29 PDT"]
[Termination "swimmerchess won by resignation"]

1. d4 {[%clk 0:03:00.9]} 1... Nf6 {[%clk 0:02:59.5]} 2. c4 {[%clk 0:03:00.9]}
2... c6 {[%clk 0:02:59.6]} 3. Nf3 {[%clk 0:03:00.4]} 3... d5 {[%clk 0:03:00.2]}
4. Nc3 {[%clk 0:03:01.3]} 4... g6 {[%clk 0:03:00.1]} 5. cxd5 {[%clk 0:03:00.2]}
5... cxd5 {[%clk 0:03:00.1]} 6. Bf4 {[%clk 0:03:00.8]} 6... Bg7 {[%clk
0:02:58.3]} 7. e3 {[%clk 0:03:00.5]} 7... O-O {[%clk 0:02:58.3]} 8. Ne5 {[%clk
0:03:00]} 8... Nc6 {[%clk 0:02:58.1]} 9. Be2 {[%clk 0:02:56.7]} 9... Ne4 {[%clk
0:02:56.2]} 10. Nxc6 {[%clk 0:02:50.4]} 10... Nxc3 {[%clk 0:02:49.1]} 11. Nxe7+
{[%clk 0:02:44.1]} 11... Qxe7 {[%clk 0:02:48.6]} 12. bxc3 {[%clk 0:02:45]} 12...
Bf5 {[%clk 0:02:46.5]} 13. O-O {[%clk 0:02:44.2]} 13... Rac8 {[%clk 0:02:46.2]}
14. Qb3 {[%clk 0:02:43.4]} 14... Rfd8 {[%clk 0:02:41.9]} 15. Rac1 {[%clk
0:02:41.4]} 15... h5 {[%clk 0:02:36.7]} 16. c4 {[%clk 0:02:39.5]} 16... g5
{[%clk 0:02:36.2]} 17. Be5 {[%clk 0:02:33.3]} 17... f6 {[%clk 0:02:25.5]} 18.
cxd5 {[%clk 0:02:32.1]} 18... fxe5 {[%clk 0:02:25.6]} 19. d6+ {[%clk 0:02:31.3]}
19... Qf7 {[%clk 0:02:25.3]} 20. Bc4 {[%clk 0:02:19.2]} 20... Rxc4 {[%clk
0:02:25.4]} 21. Qxc4 {[%clk 0:02:08.4]} 21... Qxc4 {[%clk 0:02:18.7]} 22. Rxc4
{[%clk 0:02:09.3]} 22... exd4 {[%clk 0:02:18.2]} 23. Rc5 {[%clk 0:02:05.9]}
23... Bd3 {[%clk 0:02:03]} 24. Re1 {[%clk 0:01:57.9]} 24... Bf6 {[%clk
0:01:36.8]} 25. exd4 {[%clk 0:01:50.6]} 25... Rxd6 {[%clk 0:01:36.2]} 26. Rc8+
{[%clk 0:01:46.2]} 26... Kf7 {[%clk 0:01:33.4]} 27. Rc7+ {[%clk 0:01:46.1]}
27... Kg6 {[%clk 0:01:33.6]} 28. Rxb7 {[%clk 0:01:45.7]} 28... Bxd4 {[%clk
0:01:33.8]} 29. Ree7 {[%clk 0:01:32.4]} 29... Rb6 {[%clk 0:01:15.2]} 30. Rxb6+
{[%clk 0:01:23.6]} 30... Bxb6 {[%clk 0:01:15.8]} 31. a4 {[%clk 0:01:23.9]} 31...
Bc5 {[%clk 0:01:08.3]} 32. Rc7 {[%clk 0:01:21.3]} 32... Bb6 {[%clk 0:01:08.4]}
33. Rc6+ {[%clk 0:01:19]} 33... Kf7 {[%clk 0:01:08.5]} 34. h4 {[%clk 0:01:14.3]}
34... gxh4 {[%clk 0:01:05.7]} 35. a5 {[%clk 0:01:09.1]} 35... Bxa5 {[%clk
0:01:04.2]} 36. Rc5 {[%clk 0:01:08.8]} 36... Bb6 {[%clk 0:00:53.8]} 37. Rxh5
{[%clk 0:01:09.2]} 37... a5 {[%clk 0:00:52.4]} 38. Rxh4 {[%clk 0:01:08.7]} 38...
Bc2 {[%clk 0:00:50.4]} 39. Rc4 {[%clk 0:01:06.1]} 39... Bb3 {[%clk 0:00:46.8]}
40. Rc6 {[%clk 0:01:06.3]} 40... Bd4 {[%clk 0:00:41.3]} 41. Rd6 {[%clk
0:01:02.7]} 41... Be5 {[%clk 0:00:35.2]} 42. Ra6 {[%clk 0:00:59]} 42... a4
{[%clk 0:00:35.7]} 43. g3 {[%clk 0:00:33.9]} 43... Bb2 {[%clk 0:00:35.8]} 44.
Rb6 {[%clk 0:00:33.5]} 44... Be6 {[%clk 0:00:31.6]} 45. Rxb2 {[%clk 0:00:32.2]}
45... a3 {[%clk 0:00:32.2]} 46. Rb7+ {[%clk 0:00:32.2]} 46... Kf6 {[%clk
0:00:31.5]} 47. Ra7 {[%clk 0:00:33.1]} 47... a2 {[%clk 0:00:31.9]} 48. Kg2
{[%clk 0:00:32.6]} 48... Ke5 {[%clk 0:00:31.8]} 49. f4+ {[%clk 0:00:32.5]} 49...
Kd4 {[%clk 0:00:32.5]} 50. Kf3 {[%clk 0:00:32.3]} 50... Kc3 {[%clk 0:00:33.4]}
51. Ke4 {[%clk 0:00:32]} 51... Kb2 {[%clk 0:00:34.3]} 52. f5 {[%clk 0:00:32]}
52... Bd7 {[%clk 0:00:31.7]} 53. f6 {[%clk 0:00:26.4]} 53... Be6 {[%clk
0:00:31.3]} 54. Ke5 {[%clk 0:00:26.6]} 54... Bc4 {[%clk 0:00:31.5]} 55. g4
{[%clk 0:00:25.8]} 55... Kb3 {[%clk 0:00:32]} 56. g5 {[%clk 0:00:23.8]} 56...
Bb5 {[%clk 0:00:32.7]} 57. Rxa2 {[%clk 0:00:22.7]} 57... Kxa2 {[%clk 0:00:32.8]}
58. f7 {[%clk 0:00:23.2]} 1-0

[Event "*** Titled Tuesday Blitz"]
[Site "Chess.com"]
[Date "2020.05.12"]
[Round "2"]
[White "Volodar_Murzin"]
[Black "gvanna"]
[Result "1-0"]
[WhiteElo "2713"]
[BlackElo "2478"]
[TimeControl "180+1"]
[EndTime "10:18:29 PDT"]
[Termination "Volodar_Murzin won by resignation"]

1. d4 {[%clk 0:03:00.9]} 1... d5 {[%clk 0:02:59.9]} 2. Nf3 {[%clk 0:03:00.9]}
2... Nf6 {[%clk 0:02:59.7]} 3. Bf4 {[%clk 0:03:00.6]} 3... Nh5 {[%clk
0:02:58.8]} 4. Bd2 {[%clk 0:02:51.3]} 4... g6 {[%clk 0:02:58.3]} 5. e3 {[%clk
0:02:48.3]} 5... Bg7 {[%clk 0:02:57.7]} 6. c4 {[%clk 0:02:48.2]} 6... e6 {[%clk
0:02:54.8]} 7. Nc3 {[%clk 0:02:47.6]} 7... O-O {[%clk 0:02:54.3]} 8. Rc1 {[%clk
0:02:45.6]} 8... Nf6 {[%clk 0:02:51.2]} 9. Be2 {[%clk 0:02:40.4]} 9... Nbd7
{[%clk 0:02:49.7]} 10. O-O {[%clk 0:02:39.3]} 10... c6 {[%clk 0:02:49.4]} 11. b4
{[%clk 0:02:32.9]} 11... Qe7 {[%clk 0:02:48.6]} 12. Qb3 {[%clk 0:02:30.4]} 12...
dxc4 {[%clk 0:02:45.8]} 13. Bxc4 {[%clk 0:02:29.8]} 13... e5 {[%clk 0:02:45]}
14. b5 {[%clk 0:02:08.4]} 14... e4 {[%clk 0:02:36.8]} 15. Ne1 {[%clk 0:01:54.5]}
15... cxb5 {[%clk 0:02:29.3]} 16. Nxb5 {[%clk 0:01:49.6]} 16... Nb6 {[%clk
0:02:20.4]} 17. Bb4 {[%clk 0:01:46.9]} 17... Qd7 {[%clk 0:01:58.5]} 18. Bxf8
{[%clk 0:01:45.3]} 18... Kxf8 {[%clk 0:01:48.8]} 19. Be2 {[%clk 0:01:38.1]}
19... Nbd5 {[%clk 0:01:41]} 20. Nc2 {[%clk 0:01:30.3]} 20... a6 {[%clk
0:01:36.7]} 21. Nc3 {[%clk 0:01:29]} 21... b5 {[%clk 0:01:27.5]} 22. Nxd5 {[%clk
0:01:25.3]} 22... Nxd5 {[%clk 0:01:27.4]} 23. Nb4 {[%clk 0:01:22.3]} 23... Bb7
{[%clk 0:01:25.9]} 24. Rc5 {[%clk 0:01:17]} 24... Nxb4 {[%clk 0:00:54.7]} 25.
Qxb4 {[%clk 0:01:16.6]} 25... Kg8 {[%clk 0:00:55]} 26. Qc3 {[%clk 0:01:15.8]}
26... Bf8 {[%clk 0:00:47.9]} 27. Rc7 {[%clk 0:01:09.3]} 27... Qd5 {[%clk
0:00:48]} 28. Bd1 {[%clk 0:01:06.3]} 28... Bd6 {[%clk 0:00:26.9]} 29. Bb3 {[%clk
0:00:54.2]} 29... Qh5 {[%clk 0:00:26.8]} 30. Bxf7+ {[%clk 0:00:45.9]} 30... Kf8
{[%clk 0:00:27]} 31. h3 {[%clk 0:00:39.8]} 31... Bxc7 {[%clk 0:00:19.4]} 32.
Qxc7 {[%clk 0:00:39.1]} 32... Rc8 {[%clk 0:00:07]} 33. Qxb7 {[%clk 0:00:36.8]}
33... Rd8 {[%clk 0:00:06.6]} 34. Bb3 {[%clk 0:00:34.4]} 34... Qf5 {[%clk
0:00:06.6]} 35. Qxa6 {[%clk 0:00:33.5]} 35... Ke7 {[%clk 0:00:04]} 36. Qa7+
{[%clk 0:00:31.8]} 36... Rd7 {[%clk 0:00:04.4]} 37. Qc5+ {[%clk 0:00:31.8]}
37... Qxc5 {[%clk 0:00:04.3]} 38. dxc5 {[%clk 0:00:32.7]} 38... Rc7 {[%clk
0:00:05.2]} 39. Rc1 {[%clk 0:00:32.4]} 39... Kd7 {[%clk 0:00:05.8]} 40. Bd5
{[%clk 0:00:32]} 40... b4 {[%clk 0:00:05.5]} 41. Bxe4 {[%clk 0:00:31.5]} 41...
Ke6 {[%clk 0:00:06.1]} 42. Bc2 {[%clk 0:00:30.5]} 42... Kd5 {[%clk 0:00:06.1]}
43. Bb3+ {[%clk 0:00:30.5]} 43... Kc6 {[%clk 0:00:06]} 44. e4 {[%clk 0:00:30.4]}
44... Re7 {[%clk 0:00:05.9]} 45. Bd5+ {[%clk 0:00:29.5]} 45... Kc7 {[%clk
0:00:06.4]} 46. c6 {[%clk 0:00:29.9]} 46... g5 {[%clk 0:00:05.9]} 47. Rb1 {[%clk
0:00:29.7]} 1-0

[Event "*** Titled Tuesday Blitz"]
[Site "Chess.com"]
[Date "2020.05.12"]
[Round "2"]
[White "PowerThinking2650"]
[Black "Ziachess74"]
[Result "1-0"]
[WhiteElo "2286"]
[BlackElo "2561"]
[TimeControl "180+1"]
[EndTime "10:18:31 PDT"]
[Termination "PowerThinking2650 won by checkmate"]

1. e4 {[%clk 0:03:00.9]} 1... c5 {[%clk 0:02:53.1]} 2. Nf3 {[%clk 0:03:00.9]}
2... d6 {[%clk 0:02:49.9]} 3. d4 {[%clk 0:03:00.8]} 3... cxd4 {[%clk 0:02:49.5]}
4. Nxd4 {[%clk 0:03:01.7]} 4... Nf6 {[%clk 0:02:49.7]} 5. Nc3 {[%clk 0:03:01.5]}
5... Nc6 {[%clk 0:02:49.1]} 6. Bc4 {[%clk 0:03:00.7]} 6... Qb6 {[%clk
0:02:45.4]} 7. Ndb5 {[%clk 0:02:52.8]} 7... a6 {[%clk 0:02:24.9]} 8. Be3 {[%clk
0:02:51.8]} 8... Qa5 {[%clk 0:02:20.3]} 9. Nd4 {[%clk 0:02:50.4]} 9... Ng4
{[%clk 0:02:14]} 10. O-O {[%clk 0:01:18.4]} 10... Nce5 {[%clk 0:01:11]} 11. Bb3
{[%clk 0:01:07.8]} 11... e6 {[%clk 0:00:53.6]} 12. Bc1 {[%clk 0:00:55.1]} 12...
Qc5 {[%clk 0:00:28.6]} 13. h3 {[%clk 0:00:52.4]} 13... Nf6 {[%clk 0:00:27.4]}
14. Be3 {[%clk 0:00:52.1]} 14... Qc7 {[%clk 0:00:24.9]} 15. Qe2 {[%clk
0:00:50.2]} 15... Be7 {[%clk 0:00:23.7]} 16. f4 {[%clk 0:00:50.2]} 16... Nc6
{[%clk 0:00:23.2]} 17. Nf3 {[%clk 0:00:47.5]} 17... O-O {[%clk 0:00:22.3]} 18.
g4 {[%clk 0:00:47.4]} 18... Na5 {[%clk 0:00:21]} 19. g5 {[%clk 0:00:40.6]} 19...
Nd7 {[%clk 0:00:20.7]} 20. f5 {[%clk 0:00:38.5]} 20... Nc5 {[%clk 0:00:18.3]}
21. Kh1 {[%clk 0:00:30.5]} 21... Naxb3 {[%clk 0:00:17.6]} 22. axb3 {[%clk
0:00:29.9]} 22... exf5 {[%clk 0:00:17.5]} 23. Nd5 {[%clk 0:00:23.4]} 23... Qd8
{[%clk 0:00:16.8]} 24. exf5 {[%clk 0:00:17.2]} 24... Ne4 {[%clk 0:00:13.6]} 25.
f6 {[%clk 0:00:13.7]} 25... Ng3+ {[%clk 0:00:12.9]} 26. Kg2 {[%clk 0:00:11.1]}
26... Nxe2 {[%clk 0:00:12.1]} 27. fxe7 {[%clk 0:00:11.4]} 27... Qd7 {[%clk
0:00:12.3]} 28. exf8=Q+ {[%clk 0:00:11.3]} 28... Kxf8 {[%clk 0:00:13.2]} 29. Kf2
{[%clk 0:00:08.2]} 29... Qc6 {[%clk 0:00:09.7]} 30. c4 {[%clk 0:00:07.5]} 30...
Bxh3 {[%clk 0:00:08]} 31. Kxe2 {[%clk 0:00:07.4]} 31... Bxf1+ {[%clk 0:00:07.9]}
32. Rxf1 {[%clk 0:00:07.9]} 32... Re8 {[%clk 0:00:08.6]} 33. Kd3 {[%clk
0:00:07.5]} 33... b5 {[%clk 0:00:08.5]} 34. Nd4 {[%clk 0:00:07.3]} 34... bxc4+
{[%clk 0:00:09.4]} 35. bxc4 {[%clk 0:00:06.9]} 35... Qd7 {[%clk 0:00:10.2]} 36.
Nf5 {[%clk 0:00:04.5]} 36... Qe6 {[%clk 0:00:08.9]} 37. Bd4 {[%clk 0:00:03.4]}
37... Qe4+ {[%clk 0:00:08.8]} 38. Kc3 {[%clk 0:00:03.4]} 38... Qe2 {[%clk
0:00:09]} 39. Bxg7+ {[%clk 0:00:02.8]} 39... Kg8 {[%clk 0:00:09]} 40. Nf6#
{[%clk 0:00:03.4]} 1-0

[Event "*** Titled Tuesday Blitz"]
[Site "Chess.com"]
[Date "2020.05.12"]
[Round "2"]
[White "zmeeed67"]
[Black "Chess2019Player"]
[Result "1-0"]
[WhiteElo "2428"]
[BlackElo "2177"]
[TimeControl "180+1"]
[EndTime "10:18:31 PDT"]
[Termination "zmeeed67 won by resignation"]

1. d4 {[%clk 0:02:22]} 1... Nf6 {[%clk 0:02:57.4]} 2. c4 {[%clk 0:02:22.5]} 2...
e6 {[%clk 0:02:53.3]} 3. Nc3 {[%clk 0:02:22.6]} 3... c5 {[%clk 0:02:53]} 4. d5
{[%clk 0:02:22.6]} 4... exd5 {[%clk 0:02:53.9]} 5. cxd5 {[%clk 0:02:23.5]} 5...
d6 {[%clk 0:02:52.8]} 6. Nf3 {[%clk 0:02:23.8]} 6... g6 {[%clk 0:02:53.2]} 7.
Bf4 {[%clk 0:02:23.4]} 7... Bg7 {[%clk 0:02:51.2]} 8. Qa4+ {[%clk 0:02:23.6]}
8... Bd7 {[%clk 0:02:51.6]} 9. Qb3 {[%clk 0:02:23.8]} 9... Qc7 {[%clk
0:02:52.1]} 10. e4 {[%clk 0:02:24.2]} 10... O-O {[%clk 0:02:49.3]} 11. Nd2
{[%clk 0:02:23.9]} 11... Nh5 {[%clk 0:02:44.1]} 12. Be3 {[%clk 0:02:22.9]} 12...
f5 {[%clk 0:02:43.8]} 13. exf5 {[%clk 0:02:23.7]} 13... Bxf5 {[%clk 0:02:34.8]}
14. Be2 {[%clk 0:02:21.5]} 14... Nf6 {[%clk 0:02:24.4]} 15. h3 {[%clk
0:02:21.7]} 15... a6 {[%clk 0:02:19.4]} 16. a4 {[%clk 0:02:20.2]} 16... Kh8
{[%clk 0:00:59.3]} 17. O-O {[%clk 0:02:17.6]} 17... Qc8 {[%clk 0:00:57.7]} 18.
Nc4 {[%clk 0:02:00.3]} 18... Qd8 {[%clk 0:00:48.2]} 19. Qxb7 {[%clk 0:01:52.8]}
19... Nbd7 {[%clk 0:00:40.7]} 20. g4 {[%clk 0:00:54.8]} 20... Bc2 {[%clk
0:00:34.8]} 21. Rac1 {[%clk 0:00:52.2]} 21... Rb8 {[%clk 0:00:31.1]} 22. Qxa6
{[%clk 0:00:51.9]} 22... Bb3 {[%clk 0:00:27]} 23. Qxd6 {[%clk 0:00:51.3]} 23...
Bxc4 {[%clk 0:00:20.5]} 24. Bxc4 {[%clk 0:00:51.1]} 24... Rxb2 {[%clk 0:00:19]}
25. Qg3 {[%clk 0:00:41]} 25... Rb4 {[%clk 0:00:17.4]} 26. Bb5 {[%clk 0:00:39.8]}
26... Nb6 {[%clk 0:00:15.8]} 27. d6 {[%clk 0:00:34.4]} 27... Nfd5 {[%clk
0:00:06.5]} 28. Nxd5 {[%clk 0:00:34.1]} 28... Nxd5 {[%clk 0:00:07.4]} 29. Bxc5
{[%clk 0:00:34.6]} 29... Re4 {[%clk 0:00:04.3]} 30. d7 {[%clk 0:00:25.3]} 30...
Be5 {[%clk 0:00:04.4]} 31. Qg2 {[%clk 0:00:08.4]} 31... Nf4 {[%clk 0:00:04]} 32.
Qxe4 {[%clk 0:00:08.1]} 32... Nxh3+ {[%clk 0:00:04.5]} 33. Kg2 {[%clk
0:00:07.5]} 33... Nf4+ {[%clk 0:00:04.3]} 34. Kf3 {[%clk 0:00:04.1]} 34... Rf7
{[%clk 0:00:01.9]} 35. Qxe5+ {[%clk 0:00:03.9]} 35... Kg8 {[%clk 0:00:01.9]} 36.
Bc4 {[%clk 0:00:04.2]} 36... Ne6+ {[%clk 0:00:01.6]} 37. Ke2 {[%clk 0:00:03.8]}
37... Qxd7 {[%clk 0:00:01.3]} 38. Bxe6 {[%clk 0:00:04]} 1-0

[Event "*** Titled Tuesday Blitz"]
[Site "Chess.com"]
[Date "2020.05.12"]
[Round "2"]
[White "AlphalphaZero"]
[Black "Mitronych"]
[Result "0-1"]
[WhiteElo "2439"]
[BlackElo "2264"]
[TimeControl "180+1"]
[EndTime "10:18:32 PDT"]
[Termination "Mitronych won by resignation"]

1. e4 {[%clk 0:02:49.6]} 1... c5 {[%clk 0:02:59.8]} 2. Nf3 {[%clk 0:02:49.9]}
2... d6 {[%clk 0:03:00.2]} 3. d4 {[%clk 0:02:49.3]} 3... cxd4 {[%clk 0:03:01.1]}
4. Nxd4 {[%clk 0:02:49.7]} 4... Nf6 {[%clk 0:03:02]} 5. Nc3 {[%clk 0:02:49.6]}
5... a6 {[%clk 0:03:02.1]} 6. Be3 {[%clk 0:02:49.6]} 6... e5 {[%clk 0:03:02.1]}
7. Nf3 {[%clk 0:02:50.2]} 7... Be7 {[%clk 0:03:02.4]} 8. Bc4 {[%clk 0:02:50.1]}
8... Be6 {[%clk 0:03:03.3]} 9. Bxe6 {[%clk 0:02:48.9]} 9... fxe6 {[%clk
0:03:04.2]} 10. Ng5 {[%clk 0:02:49.5]} 10... Qd7 {[%clk 0:03:04]} 11. Qf3 {[%clk
0:02:49.6]} 11... Nc6 {[%clk 0:02:58.9]} 12. Qh3 {[%clk 0:02:49.5]} 12... Nd8
{[%clk 0:02:58.5]} 13. O-O {[%clk 0:02:40.9]} 13... b5 {[%clk 0:02:58.2]} 14. a3
{[%clk 0:02:40.5]} 14... O-O {[%clk 0:02:56.3]} 15. Rad1 {[%clk 0:02:38.4]}
15... h6 {[%clk 0:02:56.1]} 16. Nf3 {[%clk 0:02:38.2]} 16... Nf7 {[%clk
0:02:54]} 17. Nh4 {[%clk 0:02:16.9]} 17... Nh7 {[%clk 0:02:32.3]} 18. Ng6 {[%clk
0:02:11.3]} 18... Rfc8 {[%clk 0:02:29]} 19. Nd5 {[%clk 0:01:58.7]} 19... Bd8
{[%clk 0:02:21.5]} 20. c3 {[%clk 0:01:50.4]} 20... Nfg5 {[%clk 0:02:19.8]} 21.
Bxg5 {[%clk 0:01:49.3]} 21... Nxg5 {[%clk 0:02:20.7]} 22. Qg4 {[%clk 0:01:49.3]}
22... Qf7 {[%clk 0:02:21.1]} 23. Ne3 {[%clk 0:01:30.1]} 23... Qxg6 {[%clk
0:02:18.2]} 24. h4 {[%clk 0:01:24.2]} 24... h5 {[%clk 0:01:41.1]} 25. Qg3 {[%clk
0:01:23.7]} 25... Qxe4 {[%clk 0:01:39]} 26. hxg5 {[%clk 0:01:22.7]} 26... d5
{[%clk 0:01:39.5]} 27. g6 {[%clk 0:01:16.2]} 27... Bf6 {[%clk 0:01:33.4]} 28.
Qh3 {[%clk 0:01:14.6]} 28... d4 {[%clk 0:01:17.3]} 29. Qxe6+ {[%clk 0:01:07.8]}
29... Kh8 {[%clk 0:01:17]} 30. cxd4 {[%clk 0:01:06.7]} 30... Re8 {[%clk
0:01:16.4]} 31. Qh3 {[%clk 0:01:05]} 31... Qxg6 {[%clk 0:01:15.4]} 32. d5 {[%clk
0:01:01.9]} 32... e4 {[%clk 0:01:15.4]} 33. b4 {[%clk 0:01:01]} 33... Bb2 {[%clk
0:01:09.4]} 34. d6 {[%clk 0:00:57.9]} 34... Bxa3 {[%clk 0:01:07.5]} 35. d7
{[%clk 0:00:58.3]} 35... Rf8 {[%clk 0:01:04.3]} 36. Rd5 {[%clk 0:00:54.8]} 36...
Bxb4 {[%clk 0:00:58.5]} 37. Rxh5+ {[%clk 0:00:50.6]} 37... Kg8 {[%clk
0:00:58.9]} 38. Rd1 {[%clk 0:00:48.7]} 38... Qf6 {[%clk 0:00:52.1]} 39. Rh8+
{[%clk 0:00:21.2]} 39... Kf7 {[%clk 0:00:51.7]} 40. Qh5+ {[%clk 0:00:21.2]}
40... Qg6 {[%clk 0:00:43.9]} 41. Qd5+ {[%clk 0:00:20.5]} 41... Qe6 {[%clk
0:00:42.4]} 42. Qxa8 {[%clk 0:00:19.7]} 42... Rxa8 {[%clk 0:00:40.9]} 43. Rxa8
{[%clk 0:00:20.6]} 43... Be7 {[%clk 0:00:40.2]} 44. d8=Q {[%clk 0:00:19.8]}
44... Bxd8 {[%clk 0:00:39.5]} 45. Rdxd8 {[%clk 0:00:20.7]} 45... b4 {[%clk
0:00:39.7]} 46. Rf8+ {[%clk 0:00:17.9]} 46... Kg6 {[%clk 0:00:39.1]} 47. Rae8
{[%clk 0:00:17.8]} 47... Qc6 {[%clk 0:00:35.6]} 48. Rc8 {[%clk 0:00:15.6]} 48...
Qa4 {[%clk 0:00:27.7]} 49. Rc6+ {[%clk 0:00:08.8]} 49... Qxc6 {[%clk 0:00:27]}
0-1

[Event "*** Titled Tuesday Blitz"]
[Site "Chess.com"]
[Date "2020.05.12"]
[Round "2"]
[White "IMTominho"]
[Black "Love_craft"]
[Result "1-0"]
[WhiteElo "2839"]
[BlackElo "2528"]
[TimeControl "180+1"]
[EndTime "10:18:33 PDT"]
[Termination "IMTominho won by resignation"]

1. d4 {[%clk 0:03:00.9]} 1... Nf6 {[%clk 0:02:59.1]} 2. Bg5 {[%clk 0:03:00.4]}
2... g6 {[%clk 0:02:55]} 3. Bxf6 {[%clk 0:03:00.1]} 3... exf6 {[%clk 0:02:55.9]}
4. g3 {[%clk 0:03:00.8]} 4... Bg7 {[%clk 0:02:56.1]} 5. Bg2 {[%clk 0:02:57.9]}
5... O-O {[%clk 0:02:57]} 6. e3 {[%clk 0:02:56.6]} 6... c6 {[%clk 0:02:54.4]} 7.
Nf3 {[%clk 0:02:51.7]} 7... Na6 {[%clk 0:02:52.9]} 8. O-O {[%clk 0:02:50.7]}
8... Nc7 {[%clk 0:02:52.8]} 9. c4 {[%clk 0:02:50]} 9... d6 {[%clk 0:02:47.5]}
10. Nc3 {[%clk 0:02:49.4]} 10... Re8 {[%clk 0:02:46.4]} 11. Qb3 {[%clk
0:02:46.6]} 11... Rb8 {[%clk 0:02:36.8]} 12. Rfd1 {[%clk 0:02:44.2]} 12... Bg4
{[%clk 0:02:26.6]} 13. h3 {[%clk 0:02:43.1]} 13... Bxf3 {[%clk 0:02:26.4]} 14.
Bxf3 {[%clk 0:02:44]} 14... f5 {[%clk 0:02:24.2]} 15. Rac1 {[%clk 0:02:42.1]}
15... h5 {[%clk 0:02:23.1]} 16. h4 {[%clk 0:02:34.2]} 16... Bf6 {[%clk
0:02:17.7]} 17. Kg2 {[%clk 0:02:33.2]} 17... Qe7 {[%clk 0:02:04.4]} 18. Ne2
{[%clk 0:02:29.8]} 18... Ne6 {[%clk 0:02:02]} 19. Qc2 {[%clk 0:02:26.6]} 19...
Rbd8 {[%clk 0:01:51.7]} 20. b4 {[%clk 0:02:25.1]} 20... Rc8 {[%clk 0:01:07.1]}
21. Qb1 {[%clk 0:02:21.9]} 21... Red8 {[%clk 0:00:59.8]} 22. d5 {[%clk
0:02:17.5]} 22... Nf8 {[%clk 0:00:55.3]} 23. dxc6 {[%clk 0:02:16.4]} 23... bxc6
{[%clk 0:00:56.2]} 24. b5 {[%clk 0:02:16.7]} 24... c5 {[%clk 0:00:48.5]} 25. Nf4
{[%clk 0:02:15.4]} 25... Bg7 {[%clk 0:00:41.3]} 26. a4 {[%clk 0:02:10.2]} 26...
Nd7 {[%clk 0:00:37.4]} 27. Nd5 {[%clk 0:01:50.9]} 27... Qf8 {[%clk 0:00:34.8]}
28. a5 {[%clk 0:01:50.6]} 28... Ne5 {[%clk 0:00:32]} 29. Qc2 {[%clk 0:01:29.3]}
29... Nxf3 {[%clk 0:00:28.4]} 30. Kxf3 {[%clk 0:01:30.2]} 30... Qe8 {[%clk
0:00:28.4]} 31. Kg2 {[%clk 0:01:29.1]} 31... Rb8 {[%clk 0:00:14.2]} 32. Rb1
{[%clk 0:01:28.4]} 32... Kf8 {[%clk 0:00:11.7]} 33. Kg1 {[%clk 0:01:13.2]} 33...
Qe4 {[%clk 0:00:10.3]} 34. Qxe4 {[%clk 0:01:12.8]} 34... fxe4 {[%clk 0:00:11.2]}
35. Rd2 {[%clk 0:01:11.9]} 35... f5 {[%clk 0:00:10.4]} 36. Ra2 {[%clk
0:01:11.4]} 36... Be5 {[%clk 0:00:09.1]} 37. a6 {[%clk 0:00:52]} 37... Kf7
{[%clk 0:00:08.2]} 38. b6 {[%clk 0:00:51.7]} 38... Ra8 {[%clk 0:00:04.7]} 39.
Nc7 {[%clk 0:00:38.1]} 39... Rab8 {[%clk 0:00:02.7]} 40. b7 {[%clk 0:00:32.4]}
40... Ke7 {[%clk 0:00:02.3]} 41. Nb5 {[%clk 0:00:30.7]} 41... Kd7 {[%clk
0:00:01.5]} 42. Nxa7 {[%clk 0:00:28.3]} 42... d5 {[%clk 0:00:02.4]} 43. cxd5
{[%clk 0:00:26.3]} 43... c4 {[%clk 0:00:02.9]} 44. Nc6 {[%clk 0:00:26.2]} 44...
c3 {[%clk 0:00:02.3]} 45. Nxe5+ {[%clk 0:00:26]} 45... Kd6 {[%clk 0:00:02]} 46.
Nf7+ {[%clk 0:00:26.2]} 46... Kxd5 {[%clk 0:00:02.2]} 47. Nxd8 {[%clk
0:00:26.1]} 1-0